fUST/lending_fUST_20250625
["ID","MTS","AMOUNT","RATE_DAILY","PERIOD"]
[367505337,1750833042257,-252.55,0.00018995,2]
[367505338,1750833042267,-460.0,0.00018995,2]
[367505339,1750833042276,-1154.81,0.00018995,2]
[367505340,1750833042285,-723.48,0.00018995,2]
[367505341,1750833042295,-460.0,0.00018995,2]
[367505342,1750833042305,-671.38,0.00018995,2]
[367505343,1750833042315,-460.0,0.00018995,2]
[367505344,1750833042325,-150.32,0.00018995,2]
[367505346,1750833042335,-529.6,0.00018995,2]
[367505347,1750833042345,-1102.72,0.00019086,2]
[367505348,1750833042355,-519.87,0.00019103,2]
[367505349,1750833042364,-2750.65653643,0.00019107,2]
[367505350,1750833042374,-444.28628516,0.00019124,2]
[367505351,1750833042383,-500.0,0.00019164,2]
[367505352,1750833042393,-500.0,0.00019178,2]
[367505353,1750833042402,-500.0,0.00019178,2]
[367505354,1750833042412,-513.89509103,0.00019178,2]
[367505355,1750833042424,-500.0,0.00019178,2]
[367505356,1750833042434,-500.0,0.00019178,2]
[367505357,1750833042444,-415.21584,0.00019178,2]
[367505358,1750833042454,-787.0,0.00019185,2]
[367505359,1750833042464,-787.0,0.00019202,2]
[367505361,1750833042474,-1330.52,0.00019266,2]
[367505362,1750833042483,-1097.51,0.00019266,2]
[367505365,1750833042629,-1131.39,0.00019267,2]
[367505367,1750833042639,-1408.91,0.00019267,2]
[367505369,1750833042649,-1431.01,0.00019267,2]
[367505371,1750833042658,-2048.78,0.00019267,2]
[367505373,1750833042668,-460.0,0.00019267,2]
[367505375,1750833042677,-460.0,0.00019267,2]
[367505377,1750833042686,-975.86,0.00019267,2]
[367505378,1750833042695,-1495.87,0.00019267,2]
[367505379,1750833042705,-902.9,0.00019267,2]
[367505380,1750833042715,-460.0,0.00019268,2]
[367505381,1750833042724,-492.62,0.00019268,2]
[367505382,1750833042733,-460.0,0.00019268,2]
[367505383,1750833042743,-262.39,0.00019268,2]
[367505384,1750833042752,-460.0,0.00019268,2]
[367505385,1750833042762,-460.0,0.00019268,2]
[367505386,1750833042771,-460.0,0.00019268,2]
[367505387,1750833042780,-460.0,0.00019268,2]
[367505388,1750833042790,-460.0,0.00019268,2]
[367505389,1750833042799,-460.0,0.00019268,2]
[367505390,1750833042808,-460.0,0.00019269,2]
[367505391,1750833042817,-460.0,0.00019269,2]
[367505392,1750833042827,-949.37,0.00019269,2]
[367505393,1750833042837,-460.0,0.00019269,2]
[367505394,1750833042846,-460.0,0.00019269,2]
[367505395,1750833042856,-460.0,0.00019269,2]
[367505396,1750833042865,-460.0,0.00019269,2]
[367505397,1750833042874,-767.24,0.00019269,2]
[367505398,1750833042883,-460.0,0.00019269,2]
[367505399,1750833042893,-460.0,0.00019269,2]
[367505400,1750833042902,-1154.81,0.00019269,2]
[367505401,1750833042911,-723.48,0.00019269,2]
[367505402,1750833042920,-460.0,0.00019269,2]
[367505403,1750833042929,-671.38,0.00019269,2]
[367505404,1750833042938,-460.0,0.00019269,2]
[367505405,1750833042948,-529.6,0.00019269,2]
[367505406,1750833042957,-1000.0,0.00019274,2]
[367505407,1750833042966,-502.42028969,0.00019281,2]
[367505408,1750833042975,-1000.0,0.00019281,2]
[367505409,1750833042984,-305.39710031,0.00019281,2]
[367505410,1750833042993,-871.54184984,0.00019304,2]
[367505411,1750833043003,-1000.0,0.00019304,2]
[367505412,1750833043012,-1004.49105772,0.00019309,2]
[367505413,1750833043021,-500.0,0.00019315,2]
[367505414,1750833043031,-151.0,0.00019315,2]
[367505415,1750833043041,-198.55525248,0.00019315,2]
[367505416,1750833043050,-151.0,0.00019315,2]
[367505417,1750833043060,-151.0,0.00019315,2]
[367505418,1750833043069,-151.0,0.00019315,2]
[367505419,1750833043079,-500.0,0.00019315,2]
[367505420,1750833043088,-151.0,0.00019315,2]
[367505421,1750833043098,-151.0,0.00019315,2]
[367505422,1750833043107,-151.36624201,0.00019315,2]
[367505423,1750833043117,-151.0,0.00019315,2]
[367505424,1750833043128,-151.0,0.00019315,2]
[367505425,1750833043138,-500.0,0.00019315,2]
[367505426,1750833043147,-500.0,0.00019315,2]
[367505427,1750833043157,-1000.0,0.00019323,2]
[367505428,1750833043167,-519.76312072,0.00019323,2]
[367505429,1750833043176,-151.0,0.00019329,2]
[367505430,1750833043186,-151.0,0.00019329,2]
[367505431,1750833043195,-239.118059,0.00019329,2]
[367505432,1750833043204,-151.0,0.00019329,2]
[367505433,1750833043214,-151.0,0.00019329,2]
[367505434,1750833043223,-657.66502,0.00019329,2]
[367505435,1750833043232,-657.66502,0.00019329,2]
[367505436,1750833043241,-151.0,0.00019329,2]
[367505437,1750833043251,-151.0,0.00019329,2]
[367505438,1750833043261,-446.226506,0.00019329,2]
[367505439,1750833043270,-446.226506,0.00019329,2]
[367505440,1750833043280,-151.0,0.00019329,2]
[367505441,1750833043290,-198.199152,0.00019329,2]
[367505442,1750833043299,-151.0,0.00019329,2]
[367505443,1750833043308,-155.228257,0.00019329,2]
[367505444,1750833043317,-169.331294,0.00019329,2]
[367505445,1750833043327,-151.0,0.00019329,2]
[367505446,1750833043336,-151.0,0.00019329,2]
[367505447,1750833043345,-151.0,0.00019329,2]
[367505448,1750833043355,-151.0,0.00019329,2]
[367505449,1750833043364,-151.0,0.00019329,2]
[367505450,1750833043373,-157.920039,0.00019329,2]
[367505451,1750833043382,-157.920039,0.00019329,2]
[367505452,1750833043392,-151.0,0.00019329,2]
[367505453,1750833043401,-153.055386,0.00019329,2]
[367505454,1750833043411,-151.0,0.00019329,2]
[367505455,1750833043420,-489.98670891,0.00019329,2]
[367505456,1750833043430,-164.570977,0.00019329,2]
[367505457,1750833043439,-164.570977,0.00019329,2]
[367505458,1750833043449,-152.258932,0.00019329,2]
[367505459,1750833043458,-151.0,0.00019329,2]
[367505460,1750833043467,-151.0,0.00019329,2]
[367505461,1750833043476,-151.0,0.00019329,2]
[367505462,1750833043485,-151.0,0.00019329,2]
[367505463,1750833043495,-160.398208,0.00019329,2]
[367505464,1750833043504,-160.398208,0.00019329,2]
[367505465,1750833043514,-156.552319,0.00019329,2]
[367505466,1750833043524,-98471.1844193,0.00019329,2]
[367505467,1750833043534,-787.0,0.00019335,2]
[367505468,1750833043544,-204.18694135,0.0001934,2]
[367505469,1750833043555,-1003.72718248,0.0001934,2]
[367505470,1750833043565,-1000.0,0.0001934,2]
[367505471,1750833043584,-502.23501126,0.0001934,2]
[367505472,1750833043593,-500.0,0.0001934,2]
[367505473,1750833043603,-500.0,0.00019342,2]
[367505474,1750833043617,-151.0,0.00019342,2]
[367505475,1750833043626,-151.0,0.00019342,2]
[367505476,1750833043635,-151.0,0.00019342,2]
[367505477,1750833043645,-245.85780394,0.00019342,2]
[367505478,1750833043655,-570.95606446,0.00019342,2]
[367505479,1750833043664,-198.0,0.00019342,2]
[367505480,1750833043674,-183.28015549,0.00019342,2]
[367505481,1750833043683,-151.0,0.00019342,2]
[367505482,1750833043693,-500.0,0.00019342,2]
[367505483,1750833043703,-500.0,0.00019342,2]
[367505484,1750833043712,-173.0,0.00019347,2]
[367505485,1750833043721,-787.0,0.00019347,2]
[367505486,1750833043730,-500.0,0.00019347,2]
[367505487,1750833043740,-283.5687599,0.00019347,2]
[367505488,1750833043749,-151.57174881,0.00019347,2]
[367505489,1750833043758,-151.52813227,0.00019347,2]
[367505490,1750833043768,-2750.65653643,0.00019348,2]
[367505491,1750833043777,-446.18,0.00019354,3]
[367505492,1750833043786,-1102.72,0.0001936,2]
[367505493,1750833043795,-151.0,0.0001936,2]
[367505494,1750833043805,-159.214922,0.0001936,2]
[367505495,1750833043814,-151.0,0.0001936,2]
[367505496,1750833043823,-151.0,0.00019361,2]
[367505497,1750833043833,-151.342855,0.00019361,2]
[367505498,1750833043842,-177.914021,0.00019361,2]
[367505499,1750833043851,-151.0,0.00019361,2]
[367505500,1750833043860,-151.320744,0.00019361,2]
[367505501,1750833043869,-151.0,0.00019361,2]
[367505502,1750833043878,-151.0,0.00019361,2]
[367505503,1750833043887,-151.0,0.00019361,2]
[367505504,1750833043896,-240.370116,0.00019361,2]
[367505505,1750833043905,-500.0,0.0001937,2]
[367505506,1750833043914,-200.01620139,0.0001937,2]
[367505507,1750833043923,-245.0,0.0001937,2]
[367505508,1750833043932,-245.0,0.0001937,2]
[367505509,1750833043941,-151.0,0.0001937,2]
[367505510,1750833043950,-349.58172341,0.0001937,2]
[367505511,1750833043960,-350.91885301,0.0001937,2]
[367505512,1750833043970,-550.32217431,0.00019374,2]
[367505513,1750833043979,-1000.0,0.00019378,2]
[367505514,1750833043989,-1000.0,0.0001938,2]
[367505515,1750833043999,-500.0,0.00019397,2]
[367505516,1750833044008,-151.0,0.00019397,2]
[367505517,1750833044018,-509.7503521,0.00019399,2]
[367505518,1750833044028,-366.0085437,0.00019399,2]
[367505519,1750833044037,-366.0085437,0.00019399,2]
[367505520,1750833044047,-366.0085437,0.00019399,2]
[367505521,1750833044057,-2153.59773811,0.00019401,2]
[367505522,1750833044067,-500.0,0.00019425,2]
[367505523,1750833044076,-151.0,0.00019425,2]
[367505524,1750833044087,-2995.0,0.00019451,2]
[367505525,1750833044096,-500.0,0.00019452,2]
[367505526,1750833044106,-178.72602344,0.00019452,2]
[367505527,1750833044116,-920.0,0.00019452,2]
[367505528,1750833044126,-173.0,0.00019464,2]
[367505529,1750833044135,-173.0,0.00019465,2]
[367505530,1750833044145,-298.0,0.00019479,2]
[367505531,1750833044155,-787.0,0.00019516,2]
[367505532,1750833044165,-787.0,0.00019519,2]
[367505533,1750833044174,-420.0,0.00019528,2]
[367505534,1750833044183,-1330.52,0.0001954,2]
[367505535,1750833044193,-1097.51,0.0001954,2]
[367505536,1750833044202,-11006.79902484,0.00019541,2]
[367505537,1750833044212,-1131.39,0.00019541,2]
[367505538,1750833044222,-1408.91,0.00019541,2]
[367505539,1750833044231,-1431.01,0.00019541,2]
[367505540,1750833044241,-2048.78,0.00019541,2]
[367505541,1750833044250,-460.0,0.00019541,2]
[367505542,1750833044260,-460.0,0.00019541,2]
[367505543,1750833044270,-975.86,0.00019541,2]
[367505544,1750833044279,-1495.87,0.00019541,2]
[367505545,1750833044289,-902.9,0.00019541,2]
[367505546,1750833044298,-34305.24929055,0.00019541,2]
[367505547,1750833044308,-460.0,0.00019542,2]
[367505548,1750833044317,-492.62,0.00019542,2]
[367505549,1750833044327,-460.0,0.00019542,2]
[367505550,1750833044337,-460.0,0.00019542,2]
[367505551,1750833044346,-460.0,0.00019542,2]
[367505552,1750833044355,-460.0,0.00019542,2]
[367505553,1750833044364,-460.0,0.00019542,2]
[367505554,1750833044374,-460.0,0.00019542,2]
[367505555,1750833044383,-460.0,0.00019542,2]
[367505556,1750833044392,-460.0,0.00019543,2]
[367505557,1750833044401,-460.0,0.00019543,2]
[367505558,1750833044411,-949.37,0.00019543,2]
[367505559,1750833044420,-460.0,0.00019543,2]
[367505560,1750833044430,-460.0,0.00019543,2]
[367505561,1750833044439,-460.0,0.00019543,2]
[367505562,1750833044449,-332.95,0.00019543,2]
[367505563,1750833044458,-767.24,0.00019543,2]
[367505564,1750833044467,-460.0,0.00019543,2]
[367505565,1750833044477,-460.0,0.00019543,2]
[367505566,1750833044486,-1154.81,0.00019543,2]
[367505567,1750833044496,-723.48,0.00019543,2]
[367505568,1750833044505,-460.0,0.00019543,2]
[367505569,1750833044514,-671.38,0.00019543,2]
[367505570,1750833044523,-460.0,0.00019543,2]
[367505571,1750833044533,-529.6,0.00019543,2]
[367505572,1750833044542,-173.0,0.00019558,2]
[367505573,1750833044552,-160.0,0.00019585,3]
[367505574,1750833044562,-2750.65653643,0.0001959,2]
[367505575,1750833044571,-1379.121214,0.00019599,2]
[367505576,1750833044580,-1102.72,0.00019634,2]
[367505577,1750833044590,-1000.0,0.0001968,2]
[367505578,1750833044600,-151.0,0.000197,2]
[367505579,1750833044609,-223.0,0.00019726,3]
[367505580,1750833044618,-1330.52,0.00019814,2]
[367505581,1750833044628,-1097.51,0.00019814,2]
[367505582,1750833044637,-1131.39,0.00019815,2]
[367505583,1750833044647,-151.0,0.00019815,2]
[367505584,1750833044656,-151.0,0.00019815,2]
[367505585,1750833044666,-164.570977,0.00019815,2]
[367505586,1750833044675,-1408.91,0.00019815,2]
[367505587,1750833044685,-164.570977,0.00019815,2]
[367505588,1750833044694,-1431.01,0.00019815,2]
[367505589,1750833044703,-151.0,0.00019815,2]
[367505590,1750833044712,-2048.78,0.00019815,2]
[367505591,1750833044722,-460.0,0.00019815,2]
[367505592,1750833044732,-460.0,0.00019815,2]
[367505593,1750833044741,-975.86,0.00019815,2]
[367505594,1750833044750,-151.0,0.00019815,2]
[367505595,1750833044760,-151.0,0.00019815,2]
[367505596,1750833044769,-151.0,0.00019815,2]
[367505597,1750833044779,-1495.87,0.00019815,2]
[367505598,1750833044788,-160.398208,0.00019815,2]
[367505599,1750833044799,-902.9,0.00019815,2]
[367505600,1750833044808,-160.398208,0.00019815,2]
[367505601,1750833044818,-460.0,0.00019816,2]
[367505602,1750833044827,-492.62,0.00019816,2]
[367505603,1750833044836,-460.0,0.00019816,2]
[367505604,1750833044846,-460.0,0.00019816,2]
[367505605,1750833044855,-460.0,0.00019816,2]
[367505606,1750833044864,-311.59,0.00019816,2]
[367505607,1750833044874,-460.0,0.00019816,2]
[367505608,1750833044883,-460.0,0.00019816,2]
[367505609,1750833044893,-245.19,0.00019816,2]
[367505610,1750833044902,-460.0,0.00019817,2]
[367505611,1750833044911,-167.35,0.00019817,2]
[367505612,1750833044921,-151.0,0.00019817,2]
[367505613,1750833044931,-949.37,0.00019817,2]
[367505614,1750833044940,-460.0,0.00019817,2]
[367505615,1750833044950,-460.0,0.00019817,2]
[367505616,1750833044959,-151.0,0.00019817,2]
[367505617,1750833044968,-502.94,0.00019817,2]
[367505618,1750833044978,-151.0,0.00019817,2]
[367505619,1750833044987,-767.24,0.00019817,2]
[367505620,1750833044997,-460.0,0.00019817,2]
[367505621,1750833045007,-151.0,0.00019817,2]
[367505622,1750833045016,-460.0,0.00019817,2]
[367505623,1750833045026,-151.0,0.00019817,2]
[367505624,1750833045035,-1154.81,0.00019817,2]
[367505625,1750833045045,-151.0,0.00019817,2]
[367505626,1750833045054,-151.0,0.00019817,2]
[367505627,1750833045064,-157.920039,0.00019817,2]
[367505628,1750833045073,-157.920039,0.00019817,2]
[367505629,1750833045083,-723.48,0.00019817,2]
[367505630,1750833045092,-460.0,0.00019817,2]
[367505631,1750833045102,-671.38,0.00019817,2]
[367505632,1750833045111,-460.0,0.00019817,2]
[367505633,1750833045121,-529.6,0.00019817,2]
[367505634,1750833045130,-1500.0,0.00019822,2]
[367505635,1750833045140,-1500.0,0.00019829,2]
[367505636,1750833045150,-2750.65653643,0.00019831,2]
[367505637,1750833045159,-1500.0,0.00019852,2]
[367505638,1750833045169,-1000.0,0.0001987,2]
[367505639,1750833045178,-676.01559857,0.00019871,2]
[367505640,1750833045188,-1500.0,0.00019888,2]
[367505641,1750833045197,-1000.0,0.000199,2]
[367505642,1750833045207,-1102.72,0.00019908,2]
[367505643,1750833045216,-151.0,0.00019926,2]
[367505644,1750833045225,-151.0,0.00019926,2]
[367505645,1750833045235,-657.66502,0.00019926,2]
[367505646,1750833045245,-657.66502,0.00019926,2]
[367505647,1750833045255,-151.0,0.00019926,2]
[367505648,1750833045265,-151.0,0.00019926,2]
[367505649,1750833045274,-446.226506,0.00019926,2]
[367505650,1750833045283,-446.226506,0.00019926,2]
[367505651,1750833045293,-1000.0,0.00019926,2]
[367505652,1750833045302,-151.0,0.00019935,2]
[367505653,1750833045312,-151.0,0.00019935,2]
[367505654,1750833045321,-332.981543,0.00019935,2]
[367505655,1750833045330,-332.981543,0.00019935,2]
[367505656,1750833045448,-153.047609,0.00019935,2]
[367505657,1750833045458,-159.214922,0.00019935,2]
[367505658,1750833045468,-151.0,0.00019935,2]
[367505659,1750833045477,-151.0,0.00019939,2]
[367505660,1750833045487,-151.0,0.00019939,2]
[367505661,1750833045496,-151.0,0.00019939,2]
[367505662,1750833045508,-151.0,0.00019967,2]
[367505663,1750833045517,-151.0,0.00019967,2]
[367505664,1750833045527,-151.0,0.00019967,2]
[367505665,1750833045536,-215.0738,0.00019986,2]
[367505666,1750833045545,-151.0,0.00019996,2]
[367505667,1750833045555,-151.0,0.00019996,2]
[367505668,1750833045565,-151.0,0.00019999,2]
[367505669,1750833045574,-151.0,0.00019999,2]
[367505670,1750833045584,-151.0,0.00019999,2]
[367505671,1750833045593,-157.95497,0.00019999,2]
[367505672,1750833045603,-151.0,0.00019999,2]
[367505673,1750833045615,-29308.87142904,0.0002,4]
[367505674,1750833045624,-587.98405069,0.0002,2]
[367505675,1750833045633,-500.0,0.0002,5]
[367505676,1750833045643,-151.0,0.0002,2]
[367505678,1750833045652,-151.0,0.0002,2]
[367505679,1750833045662,-151.0,0.0002,2]
[367505680,1750833045671,-151.517338,0.0002,2]
[367505681,1750833045680,-239.118059,0.0002,2]
[367505682,1750833045694,-151.0,0.0002,2]
[367505684,1750833045703,-151.0,0.0002,2]
[367505686,1750833045712,-151.388749,0.0002,2]
[367505688,1750833045721,-151.0,0.0002,2]
[367505689,1750833045730,-151.0,0.0002,2]
[367505692,1750833045739,-153.290759,0.0002,2]
[367505693,1750833045748,-153.290759,0.0002,2]
[367505694,1750833045757,-151.0,0.0002,3]
[367505695,1750833045767,-300.0,0.0002,2]
[367505696,1750833045777,-151.0,0.0002,3]
[367505697,1750833045786,-366.0085437,0.00020055,2]
[367505698,1750833045796,-366.0085437,0.00020055,2]
[367505699,1750833045805,-366.0085437,0.00020055,2]
[367505700,1750833045815,-366.0085437,0.00020055,2]
[367505701,1750833045824,-366.0085437,0.00020055,2]
[367505702,1750833045834,-366.0085437,0.00020055,2]
[367505703,1750833045843,-366.0085437,0.00020055,2]
[367505704,1750833045853,-366.0085437,0.00020055,2]
[367505705,1750833045862,-2153.59773811,0.00020064,2]
[367505706,1750833045872,-2750.65653643,0.00020072,2]
[367505707,1750833045882,-1330.52,0.00020088,2]
[367505708,1750833045891,-1097.51,0.00020088,2]
[367505709,1750833045901,-1131.39,0.00020089,2]
[367505710,1750833045911,-1408.91,0.00020089,2]
[367505711,1750833045921,-1431.01,0.00020089,2]
[367505712,1750833045930,-2048.78,0.00020089,2]
[367505713,1750833045939,-418.37,0.00020089,2]
[367505714,1750833045949,-460.0,0.00020089,2]
[367505715,1750833045959,-975.86,0.00020089,2]
[367505716,1750833045968,-1495.87,0.00020089,2]
[367505717,1750833045977,-902.9,0.00020089,2]
[367505718,1750833045987,-460.0,0.0002009,2]
[367505719,1750833045996,-492.62,0.0002009,2]
[367505720,1750833046006,-460.0,0.0002009,2]
[367505721,1750833046016,-460.0,0.0002009,2]
[367505722,1750833046026,-460.0,0.0002009,2]
[367505723,1750833046037,-460.0,0.0002009,2]
[367505724,1750833046046,-460.0,0.0002009,2]
[367505725,1750833046056,-419.15,0.00020091,2]
[367505726,1750833046066,-949.37,0.00020091,2]
[367505727,1750833046075,-460.0,0.00020091,2]
[367505728,1750833046085,-460.0,0.00020091,2]
[367505729,1750833046094,-767.24,0.00020091,2]
[367505730,1750833046104,-460.0,0.00020091,2]
[367505731,1750833046116,-460.0,0.00020091,2]
[367505732,1750833046127,-1154.81,0.00020091,2]
[367505733,1750833046136,-723.48,0.00020091,2]
[367505734,1750833046145,-460.0,0.00020091,2]
[367505735,1750833046155,-671.38,0.00020091,2]
[367505736,1750833046164,-460.0,0.00020091,2]
[367505737,1750833046174,-529.6,0.00020091,2]
[367505738,1750833046183,-1102.72,0.00020182,2]
[367505739,1750833046193,-151.0,0.000202,4]
[367505741,1750833046202,-587.0,0.00020279,2]
[367505742,1750833046211,-151.0,0.000203,4]
[367505743,1750833046221,-151.0,0.000203,3]
[367505744,1750833046230,-177.53783142,0.00020309,2]
[367505745,1750833046240,-255.0,0.00020309,2]
[367505746,1750833046249,-159.25493998,0.00020309,2]
[367505747,1750833046259,-2750.65653643,0.00020314,3]
[367505748,1750833046268,-1330.52,0.00020362,2]
[367505749,1750833046278,-1097.51,0.00020362,2]
[367505750,1750833046287,-1131.39,0.00020363,2]
[367505751,1750833046297,-1408.91,0.00020363,2]
[367505752,1750833046306,-1431.01,0.00020363,2]
[367505753,1750833046315,-2048.78,0.00020363,2]
[367505754,1750833046324,-460.0,0.00020363,2]
[367505755,1750833046334,-975.86,0.00020363,2]
[367505756,1750833046344,-1495.87,0.00020363,2]
[367505757,1750833046353,-902.9,0.00020363,2]
[367505758,1750833046362,-460.0,0.00020364,2]
[367505759,1750833046371,-492.62,0.00020364,2]
[367505760,1750833046381,-460.0,0.00020364,2]
[367505761,1750833046391,-460.0,0.00020364,2]
[367505762,1750833046400,-460.0,0.00020364,2]
[367505763,1750833046410,-438.14,0.00020364,2]
[367505764,1750833046419,-460.0,0.00020364,2]
[367505765,1750833046429,-151.0,0.00020364,2]
[367505766,1750833046439,-160.398208,0.00020364,2]
[367505767,1750833046448,-160.398208,0.00020364,2]
[367505768,1750833046458,-949.37,0.00020365,2]
[367505769,1750833046467,-460.0,0.00020365,2]
[367505770,1750833046477,-460.0,0.00020365,2]
[367505771,1750833046488,-767.24,0.00020365,2]
[367505772,1750833046497,-460.0,0.00020365,2]
[367505773,1750833046506,-460.0,0.00020365,2]
[367505774,1750833046515,-1154.81,0.00020365,2]
[367505775,1750833046525,-460.0,0.00020365,2]
[367505776,1750833046535,-723.48,0.00020365,2]
[367505777,1750833046544,-671.38,0.00020365,2]
[367505778,1750833046553,-151.0,0.00020365,2]
[367505779,1750833046563,-151.0,0.00020365,2]
[367505780,1750833046572,-460.0,0.00020365,2]
[367505781,1750833046581,-164.570977,0.00020365,2]
[367505782,1750833046591,-164.570977,0.00020365,2]
[367505783,1750833046600,-151.0,0.00020365,2]
[367505784,1750833046610,-529.6,0.00020365,2]
[367505785,1750833046619,-151.0,0.00020365,2]
[367505786,1750833046630,-151.0,0.00020365,2]
[367505787,1750833046639,-2000.0,0.0002037,2]
[367505788,1750833046648,-1500.0,0.00020377,2]
[367505789,1750833046658,-151.0,0.00020396,2]
[367505790,1750833046667,-151.0,0.00020396,2]
[367505791,1750833046677,-657.66502,0.00020396,2]
[367505792,1750833046686,-657.66502,0.00020396,2]
[367505793,1750833046699,-151.0,0.00020396,2]
[367505794,1750833046713,-151.0,0.00020396,2]
[367505795,1750833046727,-446.226506,0.00020396,2]
[367505796,1750833046740,-446.226506,0.00020396,2]
[367505797,1750833046752,-502.16347564,0.000204,2]
[367505798,1750833046763,-151.0,0.00020419,2]
[367505799,1750833046777,-151.0,0.00020419,2]
[367505800,1750833046789,-151.0,0.00020419,2]
[367505801,1750833046802,-531.0,0.00020429,2]
[367505802,1750833046814,-2000.0,0.00020436,2]
[367505803,1750833046828,-1102.72,0.00020456,2]
[367505804,1750833046840,-151.0,0.00020456,2]
[367505805,1750833046853,-151.0,0.00020456,2]
[367505806,1750833046866,-151.0,0.00020456,2]
[367505807,1750833046880,-151.0,0.00020456,2]
[367505808,1750833046891,-332.981543,0.00020456,2]
[367505809,1750833046904,-332.981543,0.00020456,2]
[367505810,1750833046916,-151.0,0.00020456,2]
[367505811,1750833046928,-151.0,0.00020456,2]
[367505812,1750833046941,-151.0,0.00020456,2]
[367505813,1750833046954,-151.0,0.00020456,2]
[367505814,1750833046966,-157.920039,0.00020456,2]
[367505815,1750833046977,-157.920039,0.00020456,2]
[367505816,1750833046988,-151.0,0.00020457,2]
[367505817,1750833046999,-151.0,0.00020457,2]
[367505818,1750833047011,-225.065116,0.00020458,2]
[367505819,1750833047023,-151.0,0.00020458,2]
[367505820,1750833047036,-151.0,0.0002046,2]
[367505821,1750833047048,-151.0,0.0002046,2]
[367505822,1750833047059,-151.0,0.0002046,2]
[367505823,1750833047072,-153.290759,0.0002046,2]
[367505824,1750833047085,-153.290759,0.0002046,2]
[367505825,1750833047099,-2351.0,0.00020481,2]
[367505826,1750833047112,-151.0,0.000205,4]
[367505827,1750833047124,-500.0,0.00020547,14]
[367505828,1750833047134,-151.18516,0.00020548,2]
[367505829,1750833047144,-2750.65653643,0.00020555,3]
[367505830,1750833047155,-437.80027456,0.00020582,2]
[367505831,1750833047167,-215.518,0.00020592,2]
[367505832,1750833047181,-4710.55,0.000206,2]
[367505833,1750833047193,-151.0,0.000206,3]
[367505834,1750833047205,-151.0,0.000206,2]
[367505835,1750833047215,-151.0,0.000206,2]
[367505836,1750833047226,-151.0,0.000206,2]
[367505837,1750833047237,-151.0,0.000206,4]
[367505838,1750833047250,-237.404975,0.000206,2]
[367505839,1750833047262,-159.214922,0.000206,2]
[367505840,1750833047273,-151.0,0.000206,2]
[367505841,1750833047283,-151.0,0.000206,2]
[367505842,1750833047294,-846.80634355,0.000206,3]
[367505843,1750833047305,-12558.06783089,0.000206,3]
[367505844,1750833047316,-151.0,0.000206,4]
[367505845,1750833047328,-213.69531788,0.000206,3]
[367505846,1750833047339,-1330.52,0.00020636,2]
[367505847,1750833047350,-1097.51,0.00020636,2]
[367505848,1750833047362,-1131.39,0.00020637,2]
[367505849,1750833047372,-1408.91,0.00020637,2]
[367505850,1750833047383,-1431.01,0.00020637,2]
[367505851,1750833047394,-2048.78,0.00020637,2]
[367505852,1750833047405,-153.74722362,0.00020637,2]
[367505853,1750833047416,-975.86,0.00020637,2]